fUST/lending_fUST_20251217
["ID","MTS","AMOUNT","RATE_DAILY","PERIOD"]
[398890267,1765963273960,-305.97655742,0.000411,120]
[398890268,1765963274005,-168.94036194,0.000411,120]
[398890269,1765963274051,-549.35051691,0.000411,120]
[398890270,1765963274096,-445.32531026,0.000411,120]
[398890271,1765963274140,-176.38130533,0.000411,120]
[398890272,1765963274185,-177.64021355,0.000411,120]
[398890273,1765963274231,-583.61438789,0.000411,120]
[398890274,1765963274279,-762.30912974,0.000411,120]
[398890275,1765963274324,-1085.79727242,0.000411,120]
[398890276,1765963274370,-1148.29130945,0.000411,120]
[398890277,1765963274417,-427.57,0.00041127,120]
[398890278,1765963274465,-162.0,0.000412,120]
[398890279,1765963274512,-427.57,0.00041227,120]
[398890280,1765963274560,-427.57,0.00041327,120]
[398890281,1765963274606,-200.0,0.00041362,120]
[398890282,1765963274651,-1342.91,0.00041369,40]
[398890283,1765963274695,-2800.0,0.00041373,60]
[398890284,1765963274742,-300.0,0.000414,120]
[398890285,1765963274790,-427.57,0.00041427,120]
[398890286,1765963274835,-200.0,0.0004145,57]
[398890287,1765963274880,-427.57,0.00041527,120]
[398890288,1765963274927,-427.57,0.00041627,120]
[398890289,1765963274974,-427.57,0.00041727,120]
[398890290,1765963275021,-999.0,0.0004178,120]
[398890291,1765963275065,-162.0,0.000418,120]
[398890292,1765963275110,-427.57,0.00041827,120]
[398890293,1765963275154,-1052.67566,0.000419,120]
[398890294,1765963275202,-200.0,0.000419,120]
[398890295,1765963275252,-427.57,0.00041927,120]
[398890296,1765963275297,-500.0,0.00042,120]
[398890297,1765963275344,-500.0,0.00042,120]
[398890298,1765963275394,-300.0,0.00042,120]
[398890299,1765963275441,-800.35,0.00042,14]
[398890300,1765963275488,-1016.0,0.00042,30]
[398890301,1765963275537,-427.57,0.00042027,120]
[398890302,1765963275584,-616.3550725,0.00042138,120]
[398890303,1765963275628,-1342.91,0.00042191,41]
[398890304,1765963275676,-427.57,0.00042227,120]
[398890305,1765963275719,-583.61438789,0.000423,120]
[398890306,1765963275762,-177.64021355,0.000423,120]
[398890307,1765963275804,-762.30912974,0.000423,120]
[398890308,1765963275845,-1085.79727242,0.000423,120]
[398890309,1765963275888,-1148.29130945,0.000423,120]
[398890310,1765963275932,-427.57,0.00042327,120]
[398890311,1765963275976,-162.0,0.000424,120]
[398890312,1765963276019,-305.97655742,0.000424,120]
[398890313,1765963276063,-168.94036194,0.000424,120]
[398890314,1765963276107,-549.35051691,0.000424,120]
[398890315,1765963276151,-445.32531026,0.000424,120]
[398890316,1765963276198,-176.38130533,0.000424,120]
[398890317,1765963276245,-427.57,0.00042427,120]
[398890318,1765963276293,-999.0,0.00042465,120]
[398890319,1765963276338,-424.8462,0.00042466,120]
[398890320,1765963276384,-424.8462,0.00042466,120]
[398890321,1765963276431,-424.8462,0.00042466,120]
[398890322,1765963276476,-424.8462,0.00042466,120]
[398890323,1765963276693,-424.8462,0.00042466,120]
[398890324,1765963276741,-424.8462,0.00042466,120]
[398890325,1765963276787,-424.8462,0.00042466,120]
[398890326,1765963276834,-424.8462,0.00042466,120]
[398890327,1765963276882,-424.8462,0.00042466,120]
[398890328,1765963276927,-424.8462,0.00042466,120]
[398890329,1765963276971,-424.8462,0.00042466,120]
[398890330,1765963277016,-424.8462,0.00042466,120]
[398890331,1765963277061,-424.8462,0.00042466,120]
[398890332,1765963277104,-424.8462,0.00042466,120]
[398890333,1765963277150,-424.8462,0.00042466,120]
[398890334,1765963277196,-424.8462,0.00042466,120]
[398890335,1765963277248,-424.8462,0.00042466,120]
[398890336,1765963277297,-424.8462,0.00042466,120]
[398890337,1765963277346,-424.8462,0.00042466,120]
[398890338,1765963277393,-424.846209,0.00042466,120]
[398890339,1765963277440,-2800.0,0.00042469,60]
[398890340,1765963277488,-1000.0,0.000425,120]
[398890341,1765963277536,-427.57,0.00042527,120]
[398890342,1765963277584,-427.57,0.00042627,120]
[398890343,1765963277629,-200.0,0.00042643,120]
[398890344,1765963277675,-253.0,0.00042716,120]
[398890345,1765963277721,-169.0,0.00042716,120]
[398890346,1765963277770,-427.57,0.00042727,120]
[398890347,1765963277817,-427.57,0.00042827,120]
[398890348,1765963277865,-427.57,0.00042927,120]
[398890349,1765963277912,-200.0,0.0004296,120]
[398890350,1765963277956,-838.72660834,0.00042999,120]
[398890351,1765963278000,-288.32979645,0.00043,120]
[398890352,1765963278045,-506.78,0.00043,120]
[398890353,1765963278091,-500.0,0.00043,120]
[398890354,1765963278140,-1000.0,0.00043,120]
[398890355,1765963278186,-162.0,0.00043,120]
[398890356,1765963278234,-300.0,0.00043,120]
[398890357,1765963278282,-273157.77477402,0.00043,60]
[398890358,1765963278329,-495.19806434,0.00043,120]
[398890359,1765963278374,-799662.53205746,0.00043,60]
[398890360,1765963278420,-1016.0,0.00043,30]
[398890361,1765963278464,-1342.91,0.00043013,42]
[398890362,1765963278510,-427.57,0.00043027,120]
[398890363,1765963278557,-427.57,0.00043127,120]
[398890364,1765963278603,-999.0,0.0004315,120]
[398890365,1765963278647,-3172.1801,0.0004322,30]
[398890366,1765963278690,-427.57,0.00043227,120]
[398890367,1765963278738,-428.28,0.00043327,120]
[398890368,1765963278784,-2800.0,0.00043565,60]
[398890369,1765963278829,-162.0,0.000436,120]
[398890370,1765963278873,-305.97655742,0.000436,120]
[398890371,1765963278919,-168.94036194,0.000436,120]
[398890372,1765963278963,-549.35051691,0.000436,120]
[398890373,1765963279007,-445.32531026,0.000436,120]
[398890374,1765963279052,-176.38130533,0.000436,120]
[398890375,1765963279096,-583.61438789,0.000436,120]
[398890376,1765963279140,-177.64021355,0.000436,120]
[398890377,1765963279184,-762.30912974,0.000436,120]
[398890378,1765963279234,-1085.79727242,0.000436,120]
[398890379,1765963279282,-1148.29130945,0.000436,120]
[398890380,1765963279326,-200.0,0.0004379,64]
[398890381,1765963279370,-1000.0,0.000438,90]
[398890382,1765963279412,-1000.0,0.000438,90]
[398890383,1765963279456,-1000.0,0.000438,90]
[398890384,1765963279500,-1342.91,0.00043835,43]
[398890385,1765963279549,-999.0,0.00043835,120]
[398890386,1765963279596,-1052.67566,0.000439,120]
[398890387,1765963279644,-200.0,0.000439,120]
[398890388,1765963279692,-200.0,0.00043901,120]
[398890389,1765963279739,-500.0,0.00044,120]
[398890390,1765963279786,-300.0,0.00044,120]
[398890391,1765963279833,-649.57181294,0.00044138,120]
[398890392,1765963279879,-430.069581,0.00044222,30]
[398890393,1765963279924,-162.0,0.000443,120]
[398890394,1765963279969,-1000.0,0.000445,120]
[398890395,1765963280016,-295.86926271,0.0004452,120]
[398890396,1765963280064,-1342.91,0.00044657,44]
[398890397,1765963280110,-2800.0,0.00044661,60]
[398890398,1765963280158,-486.99143094,0.000447,60]
[398890399,1765963280206,-200.0,0.0004474,120]
[398890400,1765963280262,-169.0,0.00044852,120]
[398890401,1765963280312,-162.0,0.000449,120]
[398890402,1765963280360,-200.0,0.000449,120]
[398890403,1765963280408,-305.97655742,0.000449,120]
[398890404,1765963280454,-168.94036194,0.000449,120]
[398890405,1765963280502,-549.35051691,0.000449,120]
[398890406,1765963280550,-445.32531026,0.000449,120]
[398890407,1765963280597,-176.38130533,0.000449,120]
[398890408,1765963280646,-583.61438789,0.000449,120]
[398890409,1765963280694,-177.64021355,0.000449,120]
[398890410,1765963280742,-762.30912974,0.000449,120]
[398890411,1765963280792,-1085.79727242,0.000449,120]
[398890412,1765963280839,-1148.29130945,0.000449,120]
[398890413,1765963280884,-7300.0,0.00045,30]
[398890414,1765963280928,-1010.86646515,0.00045,120]
[398890415,1765963280972,-881.67138245,0.00045,20]
[398890416,1765963281017,-1021.69829024,0.00045,30]
[398890417,1765963281262,-505.54324056,0.00045,120]
[398890418,1765963281317,-212.95338894,0.00045,90]
[398890419,1765963281362,-1154.63116794,0.00045,120]
[398890420,1765963281408,-588.7328223,0.00045,120]
[398890421,1765963281455,-929.82566074,0.00045,120]
[398890422,1765963281501,-201.58210748,0.00045,120]
[398890423,1765963281548,-500.0,0.00045,120]
[398890424,1765963281597,-465.0,0.00045,120]
[398890425,1765963281645,-2000.00002971,0.00045,120]
[398890426,1765963281692,-300.0,0.00045,120]
[398890427,1765963281737,-757.0,0.00045,120]
[398890428,1765963281783,-10000.0,0.00045,120]
[398890429,1765963281826,-30019.40859634,0.00045,30]
[398890430,1765963281872,-217.38,0.00045,30]
[398890431,1765963281917,-675.4,0.00045,30]
[398890432,1765963281963,-631.51,0.00045,30]
[398890433,1765963282007,-584.31,0.00045,30]
[398890434,1765963282051,-801.9925591,0.00045043,30]
[398890435,1765963282095,-381.7942451,0.00045043,30]
[398890436,1765963282137,-165.593725,0.00045043,30]
[398890437,1765963282182,-165.593725,0.00045043,30]
[398890438,1765963282226,-165.593725,0.00045043,30]
[398890439,1765963282272,-165.593725,0.00045043,30]
[398890440,1765963282321,-306.0,0.00045043,30]
[398890441,1765963282368,-734.4808462,0.00045043,30]
[398890442,1765963282415,-1195.7875024,0.00045043,30]
[398890443,1765963282461,-864.853534,0.00045205,120]
[398890444,1765963282509,-200.0,0.00045228,120]
[398890445,1765963282555,-1342.91,0.00045479,45]
[398890446,1765963282603,-162.0,0.000455,120]
[398890447,1765963282652,-1536.0,0.00045659,20]
[398890448,1765963282700,-195.15,0.00045688,120]
[398890449,1765963282748,-2800.0,0.00045757,60]
[398890450,1765963282795,-507.0181532,0.000459,120]
[398890451,1765963282841,-1052.67566,0.000459,120]
[398890452,1765963282887,-240.10247,0.000459,120]
[398890453,1765963282932,-800.0,0.00046,120]
[398890454,1765963282979,-300.0,0.00046,120]
[398890456,1765963283027,-10000.0,0.00046,120]
[398890457,1765963283076,-162.0,0.000461,120]
[398890458,1765963283131,-200.0,0.0004613,70]
[398890459,1765963283183,-682.78855337,0.00046138,120]
[398890460,1765963283233,-305.97655742,0.000463,120]
[398890461,1765963283282,-168.94036194,0.000463,120]
[398890462,1765963283330,-549.35051691,0.000463,120]
[398890463,1765963283379,-445.32531026,0.000463,120]
[398890464,1765963283430,-583.61438789,0.000463,120]
[398890465,1765963283482,-177.64021355,0.000463,120]
[398890466,1765963283533,-762.30912974,0.000463,120]
[398890467,1765963283587,-1085.79727242,0.000463,120]
[398890468,1765963283638,-1148.29130945,0.000463,120]
[398890469,1765963283689,-1342.91,0.00046301,46]
[398890470,1765963283739,-1000.0,0.000465,120]
[398890471,1765963283791,-950.0,0.000465,120]
[398890472,1765963283839,-162.0,0.000467,120]
[398890473,1765963283892,-2800.0,0.00046853,60]
[398890474,1765963283942,-800.0,0.00047,120]
[398890475,1765963283990,-1000.0,0.00047,120]
[398890476,1765963284039,-300.0,0.00047,120]
[398890477,1765963284088,-5000.0,0.00047,120]
[398890478,1765963284141,-169.0,0.00047095,120]
[398890479,1765963284196,-1342.91,0.00047123,47]
[398890480,1765963284256,-631.51,0.0004725,30]
[398890481,1765963284304,-675.4,0.0004725,30]
[398890482,1765963284351,-584.31,0.0004725,30]
[398890483,1765963284397,-162.0,0.000474,120]
[398890484,1765963284444,-700.0,0.00047475,120]
[398890485,1765963284487,-1052.67566,0.000479,120]
[398890486,1765963284532,-1342.91,0.00047945,48]
[398890487,1765963284576,-2800.0,0.00047949,60]
[398890488,1765963284621,-800.0,0.00048,120]
[398890489,1765963284664,-162.0,0.00048,120]
[398890490,1765963284707,-300.0,0.00048,120]
[398890491,1765963284752,-9000.0,0.00048,120]
[398890492,1765963284795,-10793.1,0.00048,14]
[398890493,1765963284839,-716.0052938,0.00048138,120]
[398890494,1765963284883,-324.0,0.0004847,77]
[398890495,1765963284927,-162.0,0.000486,120]
[398890496,1765963284973,-200.0,0.00048638,120]
[398890497,1765963285019,-1342.91,0.00048767,49]
[398890498,1765963285063,-326.38427503,0.000488,120]
[398890499,1765963285105,-400.0,0.000489,120]
[398890500,1765963285148,-150.4740975,0.000489,120]
[398890501,1765963285192,-3092.20122514,0.000489,120]
[398890502,1765963285237,-393.46878292,0.00048999,14]
[398890503,1765963285283,-800.0,0.00049,120]
[398890504,1765963285327,-300.0,0.00049,120]
[398890505,1765963285371,-5143.0,0.00049,120]
[398890506,1765963285415,-1000.0,0.00049,120]
[398890507,1765963285459,-986.0,0.00049041,120]
[398890508,1765963285503,-1803.66885502,0.00049045,60]
[398890509,1765963285547,-200.0,0.00049163,120]
[398890510,1765963285590,-162.0,0.000492,120]
[398890511,1765963285633,-1000.0,0.00049315,120]
[398890512,1765963285674,-780.85,0.00049315,120]
[398890513,1765963285883,-169.0,0.0004945,120]
[398890514,1765963285930,-1342.91,0.00049589,50]
[398890515,1765963285978,-631.51,0.00049613,30]
[398890516,1765963286022,-675.4,0.00049613,30]
[398890517,1765963286068,-584.31,0.00049613,30]
[398890518,1765963286114,-162.0,0.000498,120]
[398890519,1765963286158,-1052.67566,0.000499,120]
[398890520,1765963286204,-1000.0,0.00049999,120]
[398890521,1765963286251,-2306.10151531,0.0005,120]
[398890522,1765963286296,-612.80460965,0.0005,30]
[398890523,1765963286342,-886.33379113,0.0005,120]
[398890524,1765963286385,-223.16793828,0.0005,20]
[398890525,1765963286427,-555.28969336,0.0005,120]
[398890526,1765963286471,-764.19843999,0.0005,120]
[398890527,1765963286512,-457.7909808,0.0005,120]
[398890528,1765963286553,-405.22961549,0.0005,120]
[398890529,1765963286593,-830.3103136,0.0005,120]
[398890530,1765963286635,-635.79367839,0.0005,120]
[398890531,1765963286676,-215.44426461,0.0005,120]
[398890532,1765963286719,-1998.86736725,0.0005,120]
[398890533,1765963286763,-800.0,0.0005,120]
[398890534,1765963286820,-2145655.07553671,0.0005,120]
[398890537,1765963332547,-1000.0,0.00028545,30]
[398890538,1765963332596,-244.0,0.00028545,30]
[398890539,1765963332647,-1000.0,0.000314,30]
[398890540,1765963332696,-492.0,0.000314,30]
[398890541,1765963332747,-1000.0,0.0003454,30]
[398890542,1765963332801,-791.0,0.0003454,30]
[398890543,1765963332852,-22143.0,0.000375,120]
[398890544,1765963332930,-1000.0,0.00037994,30]
[398890545,1765963332993,-1000.0,0.00037994,30]
[398890546,1765963333049,-1000.0,0.00041793,60]
[398890547,1765963333097,-1000.0,0.00041793,60]
[398890548,1765963333147,-579.0,0.00041793,60]
[398890549,1765963333194,-307.2959275,0.00045046,30]
[398890550,1765963333245,-1000.0,0.00045973,120]
[398890551,1765963333294,-465.0,0.00045973,120]
[398890552,1765963333337,-303.03000726,0.0004975,60]
[398890553,1765963333382,-1966675.67406524,0.0005,120]
[398890554,1765963336414,-2000000.0,0.0005,120]
[398890555,1765963347766,-1000.0,0.00030136,120]
[398890556,1765963347812,-1000.0,0.00030164,120]
[398890557,1765963347857,-1000.0,0.00030191,120]
[398890558,1765963347902,-1000.0,0.00030219,120]
[398890559,1765963347943,-1000.0,0.00030246,120]
[398890560,1765963347984,-1000.0,0.00030273,120]
[398890561,1765963348028,-1000.0,0.00030301,120]
[398890562,1765963348073,-1000.0,0.00030328,120]
[398890563,1765963348117,-1000.0,0.00030356,120]
[398890564,1765963348161,-1000.0,0.00030383,120]
[398890565,1765963348205,-1000.0,0.0003041,120]
[398890566,1765963348250,-1000.0,0.00030438,120]
[398890567,1765963348297,-1000.0,0.00030465,120]
[398890568,1765963348340,-1000.0,0.00030493,120]
[398890569,1765963348383,-1000.0,0.0003052,120]
[398890570,1765963348424,-1000.0,0.00030547,120]
[398890571,1765963348465,-826.66812876,0.00030575,120]
[398890572,1765963348509,-420.0,0.00033494,120]
[398890573,1765963348554,-447.0,0.00035494,120]
[398890574,1765963348597,-166.24,0.000369,30]
[398890575,1765963348639,-474.0,0.00037494,120]
[398890576,1765963348702,-372.89872456,0.00039494,120]
[398890577,1765963348746,-150.0,0.00049999,120]
[398890578,1765963348786,-150.0,0.00049999,120]
[398890579,1765963348825,-221.32799909,0.00049999,120]
[398890580,1765963348862,-431.0,0.00049999,120]
[398890581,1765963348900,-431.0,0.00049999,120]
[398890582,1765963348937,-431.0,0.00049999,120]
[398890583,1765963348975,-150.0,0.00049999,120]
[398890584,1765963349016,-431.0,0.00049999,120]
[398890585,1765963349057,-150.0,0.00049999,120]
[398890586,1765963349098,-431.0,0.00049999,120]
[398890587,1765963349138,-150.0,0.00049999,120]
[398890588,1765963349180,-431.0,0.00049999,120]
[398890589,1765963349222,-197.98932537,0.00049999,120]
[398890590,1765963349267,-431.0,0.00049999,120]
[398890591,1765963349309,-431.0,0.00049999,120]
[398890592,1765963349350,-431.0,0.00049999,120]
[398890593,1765963349391,-431.0,0.00049999,120]
[398890594,1765963349438,-150.0,0.00049999,120]
[398890595,1765963349479,-150.0,0.00049999,120]
[398890596,1765963349519,-431.0,0.00049999,120]
[398890597,1765963349559,-150.0,0.00049999,120]
[398890598,1765963349598,-150.0,0.00049999,120]
[398890599,1765963349636,-150.0,0.00049999,120]
[398890600,1765963349675,-431.0,0.00049999,120]
[398890601,1765963349713,-150.0,0.00049999,120]
[398890602,1765963349750,-243.97256902,0.00049999,120]
[398890603,1765963349791,-431.0,0.00049999,120]
[398890604,1765963349830,-150.0,0.00049999,120]
[398890605,1765963349868,-431.0,0.00049999,120]
[398890606,1765963349907,-150.0,0.00049999,120]
[398890607,1765963349945,-431.0,0.00049999,120]
[398890608,1765963349983,-431.0,0.00049999,120]
[398890609,1765963350021,-150.0,0.00049999,120]
[398890610,1765963350059,-150.0,0.00049999,120]
[398890611,1765963350097,-500.0,0.00049999,120]
[398890612,1765963350135,-431.0,0.00049999,120]
[398890613,1765963350173,-250.0,0.00049999,120]
[398890614,1765963350212,-500.0,0.00049999,120]
[398890615,1765963350251,-200.0,0.00049999,120]
[398890616,1765963350290,-500.0,0.00049999,120]
[398890617,1765963350327,-431.0,0.00049999,120]
[398890618,1765963350365,-500.0,0.00049999,120]
[398890619,1765963350404,-200.0,0.00049999,120]
[398890620,1765963350629,-1967971.9032532,0.0005,120]
[398890621,1765963356270,-500.0,0.00039999,31]
[398890622,1765963356318,-392.27219283,0.00039999,31]
[398890623,1765963356364,-500.0,0.00039999,31]
[398890624,1765963356409,-431.0,0.00049999,120]
[398890625,1765963356456,-431.0,0.00049999,120]
[398890626,1765963356502,-431.0,0.00049999,120]
[398890627,1765963356547,-431.0,0.00049999,120]
[398890628,1765963356591,-2048472.18714485,0.0005,120]
[398890629,1765963356636,-2999.99,0.0005,120]
[398890630,1765963356681,-300.0,0.0005,120]
[398890631,1765963356724,-168.57365064,0.0005,120]
[398890632,1765963356766,-3878.60412145,0.0005,120]
[398890633,1765963356807,-10033.41646308,0.0005,30]
[398890634,1765963356847,-1000.0,0.0005,120]
[398890635,1765963356887,-264.81353542,0.0005,120]
[398890636,1765963356929,-1000.0,0.0005,120]
[398890637,1765963356969,-1025.6474475,0.0005,60]
[398890638,1765963357010,-200.0,0.00050329,120]
[398890639,1765963357054,-162.0,0.000504,120]
[398890640,1765963357099,-1342.91,0.0005041,51]
[398890641,1765963357142,-189.77227327,0.00050865,120]
[398890642,1765963357184,-189.77227327,0.00050865,120]
[398890643,1765963357227,-189.77227327,0.00050865,120]
[398890644,1765963357270,-189.77227327,0.00050865,120]
[398890645,1765963357313,-189.77227327,0.00050865,120]
[398890646,1765963357355,-189.77227327,0.00050865,120]
[398890647,1765963357394,-189.77227327,0.00050865,120]
[398890648,1765963357437,-189.77227327,0.00050865,120]
[398890649,1765963357477,-189.77227327,0.00050865,120]
[398890650,1765963357518,-189.77227327,0.00050865,120]
[398890651,1765963357558,-189.77227327,0.00050865,120]
[398890652,1765963357600,-189.77227327,0.00050865,120]
[398890653,1765963357640,-189.77227327,0.00050865,120]
[398890654,1765963357679,-189.77227327,0.00050865,120]
[398890655,1765963357720,-1000.0,0.00050999,120]
[398890656,1765963357761,-263.2615,0.00051,120]
[398890657,1765963357800,-800.0,0.00051,120]
[398890658,1765963357839,-200.44488037,0.00051,120]
[398890659,1765963357882,-1000.0,0.00051,120]
[398890660,1765963357922,-3000.0,0.00051,85]
[398890661,1765963357965,-3000.0,0.0005101,85]
[398890662,1765963358008,-3000.0,0.0005102,85]
[398890663,1765963358050,-3000.0,0.0005103,85]
[398890664,1765963358092,-3000.0,0.0005104,85]
[398890665,1765963358136,-3000.0,0.0005105,85]
[398890666,1765963358181,-3000.0,0.0005106,85]
[398890667,1765963358227,-5907.615582,0.0005107,85]
[398890668,1765963358275,-162.0,0.000511,120]
[398890669,1765963358323,-210.0,0.0005119,30]
[398890670,1765963358371,-1342.91,0.00051232,52]
[398890671,1765963358418,-162.0,0.000517,120]
[398890672,1765963358466,-1052.67566,0.000519,120]
[398890673,1765963358512,-169.0,0.00051922,120]
[398890674,1765963358556,-1000.0,0.00051999,120]
[398890675,1765963358600,-364.86924919,0.00052,120]
[398890676,1765963358643,-800.0,0.00052,120]
[398890677,1765963358684,-300.0,0.00052,120]
[398890678,1765963358726,-1000.0,0.00052,120]
[398890679,1765963358768,-2007.0,0.00052,120]
[398890680,1765963358809,-1343.13234307,0.00052054,53]
[398890681,1765963358849,-631.51,0.00052093,30]
[398890682,1765963358890,-584.31,0.00052093,30]
[398890683,1765963358932,-675.4,0.00052093,30]
[398890684,1765963358975,-162.0,0.000523,120]
[398890685,1765963359018,-29432.9077,0.0005244,120]
[398890686,1765963359058,-1000.0,0.0005245,120]
[398890687,1765963359096,-210.0,0.0005249,30]
[398890688,1765963359136,-1185.13096562,0.000525,120]
[398890689,1765963359178,-10048.0,0.000525,120]
[398890690,1765963359220,-162.0,0.000529,120]
[398890691,1765963359261,-1000.0,0.00052999,120]
[398890692,1765963359300,-334.91983886,0.00053,120]
[398890693,1765963359338,-800.0,0.00053,120]
[398890694,1765963359376,-45146.08489824,0.00053,120]
[398890695,1765963359415,-1000.0,0.00053,120]
[398890696,1765963359454,-210.32343499,0.00053,120]
[398890697,1765963359495,-1000.0,0.00053,120]
[398890698,1765963359536,-356.0,0.00053,120]
[398890699,1765963359575,-879.32264115,0.000535,120]
[398890700,1765963359810,-162.0,0.000535,120]
[398890701,1765963359869,-234.80406874,0.000535,120]
[398890702,1765963359918,-1380.3152588,0.00053749,80]
[398890703,1765963359961,-210.0,0.0005379,30]
[398890704,1765963360004,-380.32050002,0.000538,120]
[398890705,1765963360048,-166.24,0.000538,30]
[398890706,1765963360092,-200.0,0.000539,120]
[398890707,1765963360136,-414.2032949,0.000539,120]
[398890708,1765963360181,-267.24782564,0.00053989,120]
[398890709,1765963360224,-1000.0,0.00053999,120]
[398890710,1765963360268,-2029.30072598,0.00054,120]
[398890711,1765963360313,-6300.0,0.00054,30]
[398890712,1765963360356,-320.58431075,0.00054,120]
[398890713,1765963360399,-687.70303323,0.00054,120]
[398890714,1765963360440,-1000.0,0.00054,120]
[398890715,1765963360483,-20964.5933782,0.00054,120]
[398890716,1765963360526,-300.0,0.00054,120]
[398890717,1765963360569,-2023.69,0.00054,120]
[398890718,1765963360611,-2000.0,0.00054,120]
[398890719,1765963360652,-2000.0,0.00054,120]
[398890720,1765963360694,-2000.0,0.00054,120]
[398890721,1765963360735,-2000.0,0.00054,120]
[398890722,1765963360775,-2000.0,0.00054,120]
[398890723,1765963360814,-1000.0,0.00054,120]
[398890724,1765963360852,-958.33063758,0.00054,120]
[398890725,1765963360892,-195.6050032,0.00054,120]
[398890726,1765963360931,-200.0,0.0005408,120]
[398890727,1765963360970,-162.0,0.000541,120]
[398890728,1765963361011,-1678339.1480614,0.0005418,120]
[398890729,1765963361052,-557.40784394,0.000542,120]
[398890730,1765963361093,-352.95,0.000543,120]
[398890731,1765963361134,-352.95,0.000543,120]
[398890732,1765963361173,-352.95,0.000543,120]
[398890733,1765963361220,-1000.0,0.00054443,120]
[398890734,1765963361264,-2265.0152828,0.00054495,120]
[398890735,1765963361308,-1000.0,0.00054499,120]
[398890736,1765963361352,-169.0,0.00054518,120]
[398890737,1765963361394,-20000.0,0.0005468,120]
[398890738,1765963361441,-168.3888056,0.00054792,30]
[398890739,1765963361493,-175.59174841,0.00054792,120]
[398890740,1765963361537,-156.587,0.00054793,30]
[398890741,1765963361580,-162.380719,0.00054793,120]
[398890742,1765963361622,-1000.0,0.00054794,120]
[398890743,1765963361663,-151.0,0.00054794,30]
[398890744,1765963361703,-162.0,0.000548,120]
[398890745,1765963361744,-300.0,0.000548,120]
[398890746,1765963361783,-2000.0,0.000549,120]
[398890747,1765963361822,-153.15551322,0.000549,120]
[398890748,1765963361862,-1427.8290202,0.000549,120]
[398890749,1765963361901,-358.6312701,0.000549,120]
[398890750,1765963361940,-1000.0,0.00055,120]
[398890751,1765963361981,-1998.82532628,0.00055,120]
[398890752,1765963362023,-1000.0,0.00055,120]
[398890753,1765963362065,-1162.0613335,0.00055,120]
[398890754,1765963362106,-210.0,0.0005509,120]
[398890755,1765963362148,-10000.0,0.00055134,120]
[398890756,1765963362192,-200.0,0.00055153,120]
[398890757,1765963362236,-162.0,0.000554,120]
[398890758,1765963362279,-10000.0,0.00055634,120]
[398890759,1765963362323,-1000.0,0.00056,120]
[398890760,1765963362365,-300.0,0.00056,120]
[398890761,1765963362407,-1000.0,0.00056,120]
[398890762,1765963362457,-162.0,0.00056,120]
[398890763,1765963362504,-10000.0,0.00056134,120]
[398890764,1765963362550,-210.0,0.000564,120]
[398890765,1765963362593,-472.4736913,0.000566,120]
[398890766,1765963362638,-162.0,0.000566,120]
[398890767,1765963362681,-10000.0,0.00056634,120]
[398890768,1765963362724,-2000.0,0.000569,120]
[398890769,1765963362765,-1000.0,0.00057,120]